[Event "WWRR IM-Group 2024"]
[Site "Wachtebeke"]
[Date "2024.02.14"]
[Round "8.3"]
[White "Gloeckler, Christian"]
[Black "Dobrikov, Marco"]
[Result "0-1"]
[ECO "B23"]
[WhiteElo "2354"]
[BlackElo "2260"]
[Annotator "TA"]
[PlyCount "56"]
[EventDate "2024.02.12"]
[EventType "tourn"]
[EventCountry "BEL"]
[SourceTitle "playchess.com"]
[Source "ChessBase"]
[SourceQuality "1"]
[TimeControl "40/5400+30:900+30"]

{[%evp 9,56,0,0,17,31,37,45,36,44,33,51,42,28,-4,0,-8,18,0,31,4,31,-25,0,-16,-16,-44,0,-47,0,-258,-250,-412,-360,-387,-396,-803,-774,-895,-894,-29989,-1110,-1091,-1108,-1349,-1220,-1220,-1201,-29975,-29976]} 1. e4 {[%emt 0:00:02]} c5 {[%emt 0:00:05]} 2. Nc3 {[%emt 0:00:07]} d6 {[%emt 0:00:04]} 3. d4 {[%emt 0:00:06]} cxd4 {[%emt 0:00:30]} 4. Qxd4 {[%emt 0:00:05]} Nc6 {[%emt 0:01:21]} 5. Qd2 {[%emt 0:00:32]} g6 {[%emt 0:01:10]} 6. b3 {[%emt 0:00:05]} Bg7 {[%emt 0:00:04]} 7. Bb2 {[%emt 0:00:08]} Nf6 {[%emt 0:00:10][%cal Of6e4]} 8. O-O-O {[%emt 0:00:06] White is slightly better.} O-O {[%emt 0:00:11]} 9. f3 {[%emt 0:00:49]} a5 {[%emt 0:01:44]} 10. h4 {[%emt 0:00:43]} Qb6 {[%emt 0:08:25][%cal Oa5a4]} 11. a4 {[%emt 0:02:25][%cal Oh4h5]} Be6 {[%emt 0:02:19]} 12. Bb5 {[%emt 0:03:37]} Rac8 {[%emt 0:01:06]} 13. Nge2 {[%emt 0:03:17]} Nb4 {[%emt 0:03:53]} 14. Kb1 {[%emt 0:02:05]} Rc5 {[%emt 0:04:48] [#]} 15. h5 {[%emt 0:10:19]} Nxh5 $11 {[%emt 0:03:08] Threatening ...Rfc8.} (15... Rxh5 $6 16. Rxh5 Nxh5 17. g4 $14) 16. g4 {[%emt 0:01:07]} Nf6 {[%emt 0:00:08]} 17. Rh4 {[%emt 0:09:14]} Rfc8 {[%emt 0:01:40]} 18. Rdh1 {[%emt 0:01:30]} (18. Nd4 $11 {deserves consideration.}) 18... h5 {[%emt 0:04:44]} (18... Qd8 $15 {is more appropriate.}) 19. Nd4 $2 {[%emt 0:15:15][%mdl 8192] [#]} (19. gxh5 $11 {and White has nothing to worry.} Rxh5 20. Rxh5 Nxh5 21. Nd5 Bxd5 22. Bxg7 Nxg7 (22... Rxc2 23. Qh6 f6 24. Be8) (22... Kxg7 23. Rxh5 gxh5 24. Qg5+ Kf8 25. Qh6+ Kg8 26. exd5 $11) 23. Qh6) 19... Bxg4 $1 $19 {[%emt 0:07:30]} 20. Bc4 $2 {[%emt 0:11:43]} (20. fxg4 Rxc3 21. gxh5 (21. Bxc3 $2 Nxe4 22. gxh5 Nxd2+ $19) 21... Rxc2 22. Nxc2 Rxc2 23. Qxc2 Nxc2 24. hxg6) 20... Rxc4 {[%emt 0:12:20]} 21. bxc4 {[%emt 0:01:02]} Rxc4 {[%emt 0:00:12]} 22. fxg4 $2 {[%emt 0:08:03]} (22. Ncb5 Nxc2 (22... Bd7 $2 23. Na3 $19) 23. Rxg4 (23. Nxc2 $2 Bxf3 24. e5 Ne4 $19) 23... hxg4 (23... Nxg4 $2 24. Nxc2 Rxa4 25. Nc3 $19) 24. Qd3) 22... Rxd4 {[%emt 0:00:05]} (22... Qxd4 $2 23. Qxd4 Rxd4 24. gxh5 $17) 23. Qf2 {[%emt 0:04:05] [#]} Na2 $1 {[%emt 0:05:15][%mdl 512]} 24. Qe3 {[%emt 0:09:21]} (24. Qxd4 Qxd4) 24... Nxc3+ {[%emt 0:00:44]} (24... Nxe4 $142 25. Nb5 Rxa4 (25... Rd1+ $2 26. Kxa2 Qxe3 27. Rxd1 $19) (25... Rb4 $2 26. Qxb6 Rxb2+ 27. Ka1 $19) 26. Bxg7 Qxe3 27. R4h3 Qc5 28. Rb3 Nd2+ (28... Kxg7 29. Kb2 Nd2 30. c3 Qc4 31. Kc2 Nxb3 32. Rh2 Nb4+ 33. Kb1 Qe4+ 34. Kb2 Ra2+ 35. Kxb3 a4#) 29. Kb2 Kxg7 (29... Nc4+ 30. Kb1 Kxg7 31. Nxd6 Nd2+ 32. Kb2 Nxb3 33. Ne8+ Kf8 34. cxb3 Qc3+ 35. Kb1 Qxb3+ 36. Ka1 Nc3#) 30. c3 Qf2 (30... Nxb3 31. Rxh5 gxh5 32. gxh5 Qxb5 33. Kc2 Qc4 34. h6+ Kxh6 35. Kb2 Qxc3+ 36. Kb1 Nd2#) 31. Rd1 Nc4+ (31... Nxb3+ 32. Kxb3 Nxc3 33. gxh5 Nxb5 34. h6+ Kh8 35. Kxa4 Qb2 36. Kxa5 Nc3 37. Rb1 Qxb1 38. h7 Qb5#) (31... Nb4 32. cxb4 Ne4+ 33. Rd2 Qxd2+ 34. Kb1 Qd1+ 35. Kb2 Ra1 36. gxh5 Qc1#) 32. Kb1 Nc1 (32... hxg4 33. Rh1 Qf5+ 34. Ka1 Nc1+ 35. Ra3 Nb3+ 36. Ka2 Qc2#) 33. Na3 Nxb3 34. Nc2 Ra1+ 35. Nxa1 Qb2#) 25. Qxc3 {[%emt 0:00:06]} Ne8 {[%emt 0:04:00][%cal Od4d1]} ({Worse is} 25... Nxg4 26. Qc8+ Kh7 (26... Bf8 27. Rxg4 hxg4 28. Qxg4 $11) 27. Rxh5+ (27. Qxg4 $2 Rd1+ 28. Rxd1 Qxb2#) 27... gxh5 28. Rxh5+ Nh6 29. Qf5+ Kh8 30. Qc8+ Kh7 31. Qf5+ Kh8 32. Qc8+ Kh7 $11) (25... Rxa4 $2 26. Qc8+ Bf8 (26... Kh7 27. gxh5 g5 28. h6 $17) 27. gxh5 $19) 26. Qa3 {[%emt 0:06:07] [#]} Rxa4 $3 {[%emt 0:00:49][%mdl 512]} 27. Qb3 {[%emt 0:00:38]} Rb4 {[%emt 0:00:10] White must now prevent ...a4.} 28. Rxh5 {[%emt 0:00:07]} gxh5 {[%emt 0:00:47] Weighted Error Value: White=1.31/Black=0.27 (precise) .  Loses game:     	White=1     	---        Mistake:       	White=4     	Black=1      Inaccurate:     	White=2     	Black=3      OK:         	White=5     	Black=7      Best:        	---       	Black=1      Strong:       	---       	Black=1} ({Stronger than} 28... Rxb3 29. Rh8+ Bxh8 30. Rxh8#) 0-1

[Event "WWRR IM-Group 2024"]
[Site "Wachtebeke"]
[Date "2024.02.14"]
[Round "8.4"]
[White "Milliet, Sophie"]
[Black "Matnadze Bujiashvili, Ann"]
[Result "1/2-1/2"]
[ECO "B12"]
[WhiteElo "2384"]
[BlackElo "2364"]
[Annotator "RC"]
[PlyCount "87"]
[EventDate "2024.02.12"]
[EventType "tourn"]
[EventCountry "BEL"]
[SourceTitle "playchess.com"]
[Source "ChessBase"]
[SourceQuality "1"]
[TimeControl "40/5400+30:900+30"]

1. e4 {[%emt 0:00:04]} c6 {[%emt 0:00:04]} 2. d4 {[%emt 0:00:04]} d5 {[%emt 0:00:08]} 3. e5 {[%emt 0:00:10]} Bf5 {[%emt 0:00:14]} 4. Nf3 {[%emt 0:00:09]} Bg4 {[%emt 0:00:10]} 5. Nbd2 {[%emt 0:00:25]} e6 {[%emt 0:00:06]} 6. h3 {[%emt 0:00:33]} Bxf3 {[%emt 0:00:07]} 7. Nxf3 {[%emt 0:00:03]} h5 {[%emt 0:00:29]} 8. Bd3 {[%emt 0:02:04]} g6 {[%emt 0:00:06]} 9. a4 {[%emt 0:07:00]} c5 {[%emt 0:01:38]} 10. dxc5 {[%emt 0:00:19]} Bxc5 {[%emt 0:00:51]} 11. c3 {[%emt 0:02:12]} Qc7 {[%emt 0:02:46]} 12. O-O {[%emt 0:02:20]} Nd7 {[%emt 0:03:19]} 13. Re1 {[%emt 0:01:07]} a6 {[%emt 0:00:48]} 14. Bg5 {[%emt 0:12:36]} Be7 {[%emt 0:06:25]} 15. Qd2 {[%emt 0:01:23]} Nc5 {[%emt 0:01:12]} 16. Bc2 {[%emt 0:00:09]} Rc8 {[%emt 0:02:20]} 17. Qf4 {[%emt 0:15:34]} Bxg5 {[%emt 0:01:51]} 18. Nxg5 {[%emt 0:00:22]} Qe7 {[%emt 0:01:46]} 19. a5 {[%emt 0:16:26]} h4 {[%emt 0:02:20]} 20. b4 {[%emt 0:02:31]} Rh5 {[%emt 0:08:30]} 21. Nf3 {[%emt 0:00:04]} Nd7 {[%emt 0:01:45]} 22. Ba4 {[%emt 0:01:01]} Kf8 {[%emt 0:03:22]} 23. Rac1 {[%emt 0:01:13]} Rc4 {[%emt 0:21:59]} 24. Nd4 {[%emt 0:00:12]} Kg7 {[%emt 0:01:20]} 25. Bb3 {[%emt 0:03:15]} Rc8 {[%emt 0:00:43]} 26. c4 {[%emt 0:02:25]} dxc4 {[%emt 0:03:20]} 27. Bxc4 {[%emt 0:00:06]} Nh6 {[%emt 0:11:50]} 28. b5 {[%emt 0:00:38]} axb5 {[%emt 0:04:29]} 29. Nxb5 {[%emt 0:00:04]} Rc5 {[%emt 0:01:12]} 30. Nd6 {[%emt 0:17:39]} Nxe5 {[%emt 0:04:14]} 31. Qd4 {[%emt 0:00:36]} Kh7 {[%emt 0:00:34]} 32. Ne4 {[%emt 0:03:03]} Rxa5 {[%emt 0:05:04]} 33. f4 {[%emt 0:00:15]} Nf5 {[%emt 0:04:29]} 34. Qc3 {[%emt 0:01:24]} Nd6 {[%emt 0:03:19]} 35. fxe5 {[%emt 0:01:27]} Rhxe5 {[%emt 0:01:15]} 36. Qb4 {[%emt 0:00:58]} Nf5 {[%emt 0:00:31]} 37. Qxe7 {[%emt 0:05:21]} Nxe7 {[%emt 0:00:02]} 38. Rb1 {[%emt 0:00:15]} Kg7 {[%emt 0:01:22]} 39. Rxb7 {[%emt 0:00:05]} Nf5 {[%emt 0:02:18]} 40. Kf2 {[%emt 0:04:07]} Rxe4 {[%emt 0:01:03]} 41. Rxe4 {[%emt 0:01:59]} Nd6 {[%emt 0:00:11]} 42. Rxf7+ {[%emt 0:01:42]} Kxf7 {[%emt 0:03:57]} 43. Bxe6+ {[%emt 0:00:30]} Kf6 {[%emt 0:00:15]} 44. Re2 {[%emt 0:01:40]} 1/2-1/2

[Event "WWRR IM-Group 2024"]
[Site "Wachtebeke"]
[Date "2024.02.14"]
[Round "8.5"]
[White "Van Cappellen, Jonas"]
[Black "De Waele, Warre"]
[Result "1/2-1/2"]
[ECO "C81"]
[WhiteElo "2212"]
[BlackElo "2345"]
[Annotator "RC"]
[PlyCount "42"]
[EventDate "2024.02.12"]
[EventType "tourn"]
[EventCountry "BEL"]
[SourceTitle "playchess.com"]
[Source "ChessBase"]
[SourceQuality "1"]
[TimeControl "40/5400+30:900+30"]

1. e4 {[%emt 0:00:04]} e5 {[%emt 0:00:14]} 2. Nf3 {[%emt 0:00:08]} Nc6 {[%emt 0:00:06]} 3. Bb5 {[%emt 0:00:07]} a6 {[%emt 0:00:18]} 4. Ba4 {[%emt 0:00:08]} Nf6 {[%emt 0:00:11]} 5. O-O {[%emt 0:00:11]} Nxe4 {[%emt 0:00:18]} 6. d4 {[%emt 0:00:34]} b5 {[%emt 0:00:07]} 7. Bb3 {[%emt 0:00:06]} d5 {[%emt 0:00:05]} 8. dxe5 {[%emt 0:00:08]} Be6 {[%emt 0:00:06]} 9. Qe2 {[%emt 0:00:11]} Be7 {[%emt 0:01:06]} 10. Rd1 {[%emt 0:00:10]} O-O {[%emt 0:00:07]} 11. c4 {[%emt 0:00:18]} bxc4 {[%emt 0:00:06]} 12. Bxc4 {[%emt 0:00:07]} Bc5 {[%emt 0:00:17]} 13. Be3 {[%emt 0:00:19]} Bxe3 {[%emt 0:00:06]} 14. Qxe3 {[%emt 0:00:07]} Qb8 {[%emt 0:00:13]} 15. Bb3 {[%emt 0:00:17]} Na5 {[%emt 0:02:02]} 16. Nbd2 {[%emt 0:00:51]} Qa7 {[%emt 0:00:24]} 17. Qxa7 {[%emt 0:09:02]} Rxa7 {[%emt 0:00:04]} 18. Nxe4 {[%emt 0:03:27]} Nxb3 {[%emt 0:00:05]} 19. axb3 {[%emt 0:02:31]} dxe4 {[%emt 0:00:04]} 20. Nd4 {[%emt 0:00:21]} c5 {[%emt 0:00:06]} 21. Nxe6 {[%emt 0:06:54]} fxe6 {[%emt 0:00:08]} 1/2-1/2

[Event "WWRR IM-Group 2024"]
[Site "Wachtebeke"]
[Date "2024.02.15"]
[Round "9.1"]
[White "De Waele, Warre"]
[Black "Leenhouts, Koen"]
[Result "1/2-1/2"]
[ECO "B41"]
[WhiteElo "2345"]
[BlackElo "2433"]
[Annotator "TA"]
[PlyCount "37"]
[EventDate "2024.02.12"]
[EventType "tourn"]
[EventCountry "BEL"]
[SourceTitle "playchess.com"]
[Source "ChessBase"]
[SourceQuality "1"]
[TimeControl "40/5400+30:900+30"]

{[%evp 11,37,25,32,9,28,27,18,20,18,18,26,39,38,35,37,29,28,29,20,24,21,17,16,8,26,1,13,16]} 1. e4 {[%emt 0:00:05]} c5 {[%emt 0:00:07]} 2. Nf3 {[%emt 0:00:07]} e6 {[%emt 0:00:08]} 3. d4 {[%emt 0:00:08]} cxd4 {[%emt 0:00:06]} 4. Nxd4 {[%emt 0:00:05]} a6 {[%emt 0:00:08]} 5. c4 {[%emt 0:00:12]} Nf6 {[%emt 0:00:06]} 6. Nc3 {[%emt 0:00:06]} Bb4 {[%emt 0:00:04]} 7. Qd3 {[%emt 0:00:26]} d5 {[%emt 0:00:04]} 8. exd5 {[%emt 0:00:12]} exd5 {[%emt 0:00:05]} 9. Be2 {[%emt 0:00:06]} O-O {[%emt 0:00:13]} 10. O-O {[%emt 0:00:08]} Nc6 {[%emt 0:00:05] [#] Threatens to win with ...dxc4.} 11. Nxc6 {[%emt 0:02:02]} (11. cxd5 {looks sharper.} Nxd5 12. Nxd5 Qxd5 13. Nxc6 bxc6 14. Qg3) 11... bxc6 {[%emt 0:00:05]} 12. cxd5 {[%emt 0:00:07]} Nxd5 {[%emt 0:00:05]} 13. Nxd5 {[%emt 0:02:08]} Qxd5 {[%emt 0:00:08]} 14. Qxd5 {[%emt 0:02:28]} (14. Qg3 {is interesting.} Bd6 15. Bf4 Bxf4 16. Qxf4 Be6 17. Rfc1) 14... cxd5 {[%emt 0:00:06]} 15. Be3 {[%emt 0:03:02]} Be6 {[%emt 0:03:06]} 16. Rfd1 {[%emt 0:08:55]} a5 {[%emt 0:03:45]} 17. Bf3 {[%emt 0:00:49]} Rfd8 {[%emt 0:00:31]} 18. Bd4 {[%emt 0:02:34]} Rac8 {[%emt 0:01:13]} 19. Rac1 {[%emt 0:03:32] Weighted Error Value: White=0.05 (flawless) /Black=0.04 (flawless) .  OK:         	White=3     	Black=4} 1/2-1/2

[Event "WWRR IM-Group 2024"]
[Site "Wachtebeke"]
[Date "2024.02.15"]
[Round "9.2"]
[White "Matnadze Bujiashvili, Ann"]
[Black "Van Cappellen, Jonas"]
[Result "1-0"]
[ECO "A62"]
[WhiteElo "2364"]
[BlackElo "2212"]
[Annotator "TA"]
[PlyCount "85"]
[EventDate "2024.02.12"]
[EventType "tourn"]
[EventCountry "BEL"]
[SourceTitle "playchess.com"]
[Source "ChessBase"]
[SourceQuality "1"]
[TimeControl "40/5400+30:900+30"]

{[%evp 18,85,25,21,41,16,48,31,22,22,30,32,79,87,80,79,67,75,81,76,92,44,68,53,60,58,74,61,64,37,44,46,47,63,44,37,42,38,77,87,82,87,91,80,70,25,78,59,49,75,136,89,100,99,234,240,366,366,380,366,399,385,537,554,524,537,1215,739,672,613]} 1. d4 {[%emt 0:00:03]} Nf6 {[%emt 0:00:17]} 2. g3 {[%emt 0:00:07]} e6 {[%emt 0:00:07]} 3. c4 {[%emt 0:00:04]} c5 {[%emt 0:00:06]} 4. d5 {[%emt 0:00:05]} exd5 {[%emt 0:00:06]} 5. cxd5 {[%emt 0:00:03]} d6 {[%emt 0:00:08]} 6. Nc3 {[%emt 0:00:05]} g6 {[%emt 0:00:07]} 7. Bg2 {[%emt 0:00:05]} Bg7 {[%emt 0:00:06]} 8. Nf3 {[%emt 0:00:05]} O-O {[%emt 0:00:07]} 9. O-O {[%emt 0:00:06]} Re8 {[%emt 0:00:07]} 10. Bf4 {[%emt 0:00:06]} h6 {[%emt 0:00:08]} 11. Re1 {[%emt 0:01:40]} g5 {[%emt 0:00:12]} 12. Bc1 {[%emt 0:00:43]} a6 {[%emt 0:05:34] Weiß steht etwas besser.} 13. a4 {[%emt 0:00:22][%cal Ba2a4,Ba4a5][%mdl 32]} Bf5 {[%emt 0:02:14]} 14. h4 {[%emt 0:00:46]} g4 {[%emt 0:00:07]} (14... Nh7 $14) 15. Nd2 $16 {[%emt 0:00:12][%cal Bf3d2,Bd2c4,Bc4e3][%mdl 32] Und e4 würde nun gewinnen.} Nbd7 {[%emt 0:01:16]} 16. Nc4 {[%emt 0:04:50]} Nb6 {[%emt 0:03:42]} 17. Ne3 {[%emt 0:00:48]} Bg6 {[%emt 0:00:39]} 18. a5 {[%emt 0:00:32]} Nbd7 {[%emt 0:03:12] [#]} 19. h5 $1 {[%emt 0:00:57]} Nxh5 {[%emt 0:07:32]} (19... Bh7 20. Nc4) 20. Nxg4 {[%emt 0:00:10]} f5 {[%emt 0:07:39]} 21. Nh2 {[%emt 0:01:43]} Ne5 {[%emt 0:06:21]} 22. Ra4 {[%emt 0:01:51]} Nf6 {[%emt 0:07:54]} 23. Bd2 {[%emt 0:12:07]} b5 {[%emt 0:09:30]} 24. axb6 {[%emt 0:00:15]} Qxb6 {[%emt 0:00:16]} 25. Qc1 {[%emt 0:01:49]} Nfg4 {[%emt 0:07:10]} 26. Nxg4 {[%emt 0:02:07]} Nxg4 {[%emt 0:00:08]} 27. Nd1 {[%emt 0:08:29]} Bd4 {[%emt 0:14:42]} 28. Bc3 {[%emt 0:05:20]} Qb5 {[%emt 0:06:09][%csl LRa4,LRe2] [#]} 29. Ra5 {[%emt 0:01:49]} Qc4 {[%emt 0:08:00]} 30. Qc2 {[%emt 0:13:06] Ra4 ist eine echte Drohung.} Rab8 {[%emt 0:02:32]} 31. Ra3 {[%emt 0:09:01]} Ne5 {[%emt 0:03:09]} (31... Rb6 $11 {hält das Gleichgewicht.}) 32. b3 $36 {[%emt 0:02:20][%cal Bb2b3,Bb3b4][%mdl 2080] Weiss drückt.} Qb5 {[%emt 0:00:19]} 33. Qd2 {[%emt 0:01:08][%csl LRd4,LRh6] Lässt f4 nicht zu} Kh7 {[%emt 0:01:48]} (33... Bxc3 $142 34. Qxc3 (34. Nxc3 Qb4 $14) 34... Bh5) 34. Bxd4 {[%emt 0:04:20]} (34. Ba5 $142) 34... cxd4 {[%emt 0:00:02]} 35. Qxd4 {[%emt 0:00:22]} Rbc8 {[%emt 0:03:50] Das kostet Schwarz die Partie.} (35... f4 $16 {ist wohl besser.}) 36. Ne3 $18 {[%emt 0:01:12]} Rc5 {[%emt 0:01:59]} (36... a5 {ist eine bessere Verteidigung.} 37. Qa7+ Kg8 38. Qxa5 (38. Rxa5 Qxb3 39. Bh3 Qb4 $18) 38... Qxa5 39. Rxa5 Rc3) 37. b4 {[%emt 0:03:04]} Rc7 {[%emt 0:00:11]} 38. Ra5 {[%emt 0:00:46][%cal Ba3a5,Ba5a6,Ba6a7][%mdl 32]} Qb7 {[%emt 0:00:19]} 39. Rea1 {[%emt 0:00:14]} Rec8 {[%emt 0:00:40]} 40. Rxa6 {[%emt 0:04:38] Weiß steht klar auf Gewinn.} Rc1+ {[%emt 0:00:09]} 41. Kh2 {[%emt 0:15:31] Schwarz muss nun Ra7 beachten.} Qb5 {[%emt 0:16:10]} 42. Ra7+ {[%emt 0:07:25]} R1c7 {[%emt 0:00:00]} 43. Rc1 {[%emt 0:00:00] Gewichteter Fehlerwert: Weiß=0.10 (sehr präzise) /Schwarz=0.27 (präzise) .  Fehler:       	Weiß=2     	Schwarz=5     Ungenau:       	Weiß=3     	Schwarz=4     OK:         	Weiß=16    	Schwarz=8     Bester:       	Weiß=3     	Schwarz=2} 1-0

[Event "WWRR IM-Group 2024"]
[Site "Wachtebeke"]
[Date "2024.02.15"]
[Round "9.3"]
[White "Dobrikov, Marco"]
[Black "Milliet, Sophie"]
[Result "1-0"]
[ECO "D45"]
[WhiteElo "2260"]
[BlackElo "2384"]
[Annotator "RC"]
[PlyCount "89"]
[EventDate "2024.02.12"]
[EventType "tourn"]
[EventCountry "BEL"]
[SourceTitle "playchess.com"]
[Source "ChessBase"]
[SourceQuality "1"]
[TimeControl "40/5400+30:900+30"]

1. d4 {[%emt 0:00:04]} Nf6 {[%emt 0:00:14]} 2. c4 {[%emt 0:00:04]} e6 {[%emt 0:00:04]} 3. Nf3 {[%emt 0:00:02]} d5 {[%emt 0:00:16]} 4. Nc3 {[%emt 0:00:05]} c6 {[%emt 0:00:08]} 5. e3 {[%emt 0:00:17]} Nbd7 {[%emt 0:00:11]} 6. Be2 {[%emt 0:00:08]} Bd6 {[%emt 0:00:11]} 7. O-O {[%emt 0:00:42]} O-O {[%emt 0:00:19]} 8. b3 {[%emt 0:01:26]} Ne4 {[%emt 0:00:12]} 9. Nxe4 {[%emt 0:06:12]} dxe4 {[%emt 0:00:19]} 10. Nd2 {[%emt 0:00:05]} f5 {[%emt 0:00:03]} 11. f4 {[%emt 0:03:27]} exf3 {[%emt 0:00:14]} 12. Nxf3 {[%emt 0:00:09]} b6 {[%emt 0:00:11]} 13. Qc2 {[%emt 0:11:54]} c5 {[%emt 0:06:14]} 14. e4 {[%emt 0:05:12]} cxd4 {[%emt 0:02:26]} 15. exf5 {[%emt 0:01:58]} Nc5 {[%emt 0:44:18]} 16. Bg5 {[%emt 0:06:59]} Qc7 {[%emt 0:00:45]} 17. b4 {[%emt 0:01:50]} Nb7 {[%emt 0:08:24]} 18. fxe6 {[%emt 0:04:11]} Bxe6 {[%emt 0:01:27]} 19. Bd3 {[%emt 0:00:20]} h6 {[%emt 0:34:04]} 20. Bh7+ {[%emt 0:00:38]} Kh8 {[%emt 0:00:00]} 21. Nh4 {[%emt 0:00:18]} Rxf1+ {[%emt 0:00:00]} 22. Rxf1 {[%emt 0:00:09]} Bg8 {[%emt 0:00:00]} 23. Bxg8 {[%emt 0:17:49]} Kxg8 {[%emt 0:00:00]} 24. Bxh6 {[%emt 0:01:56]} Bxh2+ {[%emt 0:00:00]} 25. Kh1 {[%emt 0:00:03]} Be5 {[%emt 0:00:00]} 26. Bg5 {[%emt 0:02:01]} Bd6 {[%emt 0:02:30]} 27. Qb3 {[%emt 0:03:29]} Rf8 {[%emt 0:00:35]} 28. c5+ {[%emt 0:00:26]} Kh7 {[%emt 0:00:04]} 29. Qd3+ {[%emt 0:00:15]} Kg8 {[%emt 0:00:11]} 30. cxd6 {[%emt 0:01:02]} Rxf1+ {[%emt 0:00:10]} 31. Qxf1 {[%emt 0:00:03]} Nxd6 {[%emt 0:00:04]} 32. Ng6 {[%emt 0:06:30]} Ne4 {[%emt 0:02:16]} 33. Ne7+ {[%emt 0:02:01]} Qxe7 {[%emt 0:00:16]} 34. Bxe7 {[%emt 0:00:09]} Ng3+ {[%emt 0:00:03]} 35. Kg1 {[%emt 0:00:04]} Nxf1 {[%emt 0:00:03]} 36. Kxf1 {[%emt 0:00:03]} Kf7 {[%emt 0:00:03]} 37. Bh4 {[%emt 0:00:48]} Ke6 {[%emt 0:01:09]} 38. Ke2 {[%emt 0:00:14]} a5 {[%emt 0:00:34]} 39. a3 {[%emt 0:00:33]} axb4 {[%emt 0:00:11]} 40. axb4 {[%emt 0:00:01]} Ke5 {[%emt 0:00:37]} 41. Kd3 {[%emt 0:15:10]} b5 {[%emt 0:15:08]} 42. Bf2 {[%emt 0:00:08]} g5 {[%emt 0:00:13]} 43. Bxd4+ {[%emt 0:00:06]} Kf4 {[%emt 0:00:03]} 44. Be3+ {[%emt 0:00:12]} Kg4 {[%emt 0:02:45]} 45. Ke4 {[%emt 0:28:47]} 1-0

[Event "WWRR IM-Group 2024"]
[Site "Wachtebeke"]
[Date "2024.02.15"]
[Round "9.4"]
[White "Victor, Julian"]
[Black "Gloeckler, Christian"]
[Result "0-1"]
[ECO "E04"]
[WhiteElo "2216"]
[BlackElo "2354"]
[Annotator "TA"]
[PlyCount "74"]
[EventDate "2024.02.12"]
[EventType "tourn"]
[EventCountry "BEL"]
[SourceTitle "playchess.com"]
[Source "ChessBase"]
[SourceQuality "1"]
[TimeControl "40/5400+30:900+30"]

{[%evp 23,74,13,11,17,22,17,23,22,14,19,15,5,10,10,8,20,18,-165,-167,-208,-207,-203,0,0,0,0,0,-65,-70,-75,-75,-58,0,-99,-93,-104,-117,-106,-102,-139,-130,-133,-122,-180,-182,-178,-162,-971,-1008,-1544,-933,-1897,-1651]} 1. d4 {[%emt 0:00:03]} Nf6 {[%emt 0:00:07]} 2. c4 {[%emt 0:00:04]} e6 {[%emt 0:00:04]} 3. g3 {[%emt 0:00:04]} d5 {[%emt 0:00:08]} 4. Bg2 {[%emt 0:00:05]} dxc4 {[%emt 0:00:07]} 5. Nf3 {[%emt 0:00:07]} c5 {[%emt 0:00:08]} 6. O-O {[%emt 0:00:25]} Nc6 {[%emt 0:00:14]} 7. dxc5 {[%emt 0:00:36]} Qxd1 {[%emt 0:00:09]} 8. Rxd1 {[%emt 0:00:03]} Bxc5 {[%emt 0:00:10]} 9. Nbd2 {[%emt 0:00:21]} c3 {[%emt 0:00:06]} 10. bxc3 {[%emt 0:00:05]} O-O {[%emt 0:00:11]} 11. Nb3 {[%emt 0:00:14]} Be7 {[%emt 0:00:06]} 12. c4 {[%emt 0:04:55]} Bd7 {[%emt 0:01:05]} 13. Bb2 {[%emt 0:00:07]} Rfc8 {[%emt 0:01:48]} 14. Bxf6 {[%emt 0:10:50]} Bxf6 {[%emt 0:00:08]} 15. Rxd7 {[%emt 0:00:05] White has an edge.} Bxa1 {[%emt 0:00:06]} 16. Nxa1 {[%emt 0:00:04][%cal Oa1b3] Hoping for Nb3!} Rd8 {[%emt 0:00:06]} 17. Rxd8+ {[%emt 0:22:33]} (17. Rxb7 $2 Rd1+ 18. Bf1 Rxa1 $19) 17... Rxd8 {[%emt 0:00:16]} 18. Nb3 {[%emt 0:01:07]} Rd1+ {[%emt 0:01:20]} 19. Bf1 {[%emt 0:00:11]} Rb1 {[%emt 0:03:20]} 20. c5 $2 {[%emt 0:18:22]} (20. Nfd2 $11 {and White has nothing to worry.} Rb2 21. a4) 20... Rb2 $19 {[%emt 0:03:14]} 21. Nfd2 {[%emt 0:09:48]} Rxa2 {[%emt 0:03:37]} 22. Nc4 {[%emt 0:00:18]} Rc2 $2 {[%emt 0:04:12]} (22... a5 $19 {aiming for ...a4.} 23. Bg2 a4 (23... Rxe2 24. Bxc6 bxc6 25. Ncxa5 $14) 24. Bxc6 axb3 (24... bxc6 $2 25. Nd4 $19) 25. Bxb7 Rc2 (25... Rxe2 26. c6 $11)) 23. e3 $1 $11 {[%emt 0:01:07]} Rc3 {[%emt 0:05:44]} 24. Nbd2 {[%emt 0:09:03]} f5 {[%emt 0:04:01]} 25. f4 {[%emt 0:02:11]} (25. Bg2 $11) 25... a5 $1 $15 {[%emt 0:06:19][%mdl 1024] Black has compensation.} 26. Kf2 {[%emt 0:04:25]} a4 {[%emt 0:02:31] [#] And now ...a3 would win.} 27. Nb1 {[%emt 0:00:10]} Rb3 {[%emt 0:01:43]} (27... Rc2+ $15 28. Be2 Nb4) 28. Nca3 {[%emt 0:01:24]} (28. Ncd2 $11 {keeps the balance.} Rb2 29. Bc4) 28... Rb2+ $17 {[%emt 0:05:49]} 29. Be2 {[%emt 0:00:42]} Nb4 {[%emt 0:04:10] Black is more active.} 30. Ke1 {[%emt 0:04:46]} Nc2+ {[%emt 0:05:15]} 31. Nxc2 {[%emt 0:00:12]} Rxc2 {[%emt 0:00:07]} ({Stronger than} 31... Rxb1+ 32. Kd2 $16) 32. Kd1 {[%emt 0:01:32] Prevents Rc1+} Rxc5 {[%emt 0:01:34]} 33. Kd2 {[%emt 0:00:12]} (33. Na3 $17 {was necessary.}) 33... b5 $19 {[%emt 0:11:42]} 34. Nc3 {[%emt 0:01:48]} a3 {[%emt 0:00:44]} 35. Bd1 $2 {[%emt 0:01:38]} (35. Na2) 35... b4 {[%emt 0:00:59] Black is clearly winning.} 36. Na2 {[%emt 0:00:42]} Rd5+ {[%emt 0:05:31]} 37. Ke2 {[%emt 0:00:07] [#]} Rxd1 $1 {[%emt 0:00:19][%mdl 512] Weighted Error Value: White=0.67/Black=0.14 (very precise) .  Loses game:     	White=1     	---        Missed win:     	---       	Black=1      Mistake:       	White=4     	Black=1      OK:         	White=10    	Black=10     Best:        	White=2     	Black=6      Strong:       	White=1     	Black=1} 0-1